[Event "Titled Tuesday Blitz October 18 Late 2022"]
[White "De Souza, Cristiano Gomes"]
[Black "P., Komal Kishore"]
[WhiteFideId "2151758"]
[BlackFideId "5016703"]
[WhiteElo "2068"]
[BlackElo "2095"]
[Result "0-1"]
[Round "09"]
[TimeControl "180+1"]
[Date "2022.10.19"]
[WhiteClock "0:01:11"]
[BlackClock "0:01:32"]

1. d4 {[%clk 0:03:00]}  d5 {[%clk 0:02:59]} 2. c4 {[%clk 0:03:00]}  c6 {[%clk 0:02:48]} 3. Nf3 {[%clk 0:02:57]}  Nf6 {[%clk 0:02:48]} 4. Nc3 {[%clk 0:02:56]}  dxc4 {[%clk 0:02:49]} 5. a4 {[%clk 0:02:55]}  Bf5 {[%clk 0:02:49]} 6. e3 {[%clk 0:02:55]}  e6 {[%clk 0:02:49]} 7. Bxc4 {[%clk 0:02:55]}  Nbd7 {[%clk 0:02:48]} 8. O-O {[%clk 0:02:54]}  Bb4 {[%clk 0:02:47]} 9. Bd3 {[%clk 0:02:53]}  Bxd3 {[%clk 0:02:47]} 10. Qxd3 {[%clk 0:02:53]}  O-O {[%clk 0:02:45]} 11. Bd2 {[%clk 0:02:50]}  a5 {[%clk 0:02:45]} 12. Rfc1 {[%clk 0:02:45]}  Qe7 {[%clk 0:02:45]} 13. Ne4 {[%clk 0:02:41]}  Nxe4 {[%clk 0:02:43]} 14. Qxe4 {[%clk 0:02:37]}  Nf6 {[%clk 0:02:25]} 15. Qd3 {[%clk 0:02:31]}  Rfd8 {[%clk 0:02:24]} 16. Ne5 {[%clk 0:02:28]}  Bxd2 {[%clk 0:02:17]} 17. Qxd2 {[%clk 0:02:27]}  Qb4 {[%clk 0:02:18]} 18. Qxb4 {[%clk 0:02:19]}  axb4 {[%clk 0:02:18]} 19. Rc4 {[%clk 0:02:16]}  Nd5 {[%clk 0:02:16]} 20. e4 {[%clk 0:02:10]}  Nf4 {[%clk 0:02:16]} 21. Kf1 {[%clk 0:02:01]}  f6 {[%clk 0:02:12]} 22. Nf3 {[%clk 0:01:54]}  Nd3 {[%clk 0:02:11]} 23. Ke2 {[%clk 0:01:46]}  Nf4+ {[%clk 0:02:05]} 24. Kf1 {[%clk 0:01:46]}  Nd3 {[%clk 0:02:02]} 25. g3 {[%clk 0:01:43]}  b5 {[%clk 0:01:52]} 26. Rxc6 {[%clk 0:01:42]}  bxa4 {[%clk 0:01:50]} 27. Rc4 {[%clk 0:01:35]}  Rdb8 {[%clk 0:01:47]} 28. Rb1 {[%clk 0:01:29]}  b3 {[%clk 0:01:41]} 29. Ke2 {[%clk 0:01:26]}  Nxb2 {[%clk 0:01:36]} 30. Rxb2 {[%clk 0:01:23]}  a3 {[%clk 0:01:36]} 31. Rxb3 {[%clk 0:01:11]}  Rxb3 {[%clk 0:01:32]} 0-1


[Site "https://www.chess.com"]

[Event "Titled Tuesday Blitz October 18 Late 2022"]
[White "Dzierzak, Radoslaw"]
[Black "Hoffmann, Asa"]
[WhiteFideId "1161407"]
[BlackFideId "2001470"]
[WhiteElo "2111"]
[BlackElo "2117"]
[Result "1/2-1/2"]
[Round "09"]
[TimeControl "180+1"]
[Date "2022.10.19"]
[WhiteClock "0:00:05"]
[BlackClock "0:00:49"]

1. e4 {[%clk 0:03:00]}  d6 {[%clk 0:02:55]} 2. d4 {[%clk 0:03:00]}  Nf6 {[%clk 0:02:54]} 3. Nc3 {[%clk 0:03:00]}  c6 {[%clk 0:02:53]} 4. Nf3 {[%clk 0:02:59]}  Bg4 {[%clk 0:02:52]} 5. h3 {[%clk 0:02:55]}  Bh5 {[%clk 0:02:52]} 6. Qe2 {[%clk 0:02:55]}  e6 {[%clk 0:02:52]} 7. g4 {[%clk 0:02:41]}  Bg6 {[%clk 0:02:51]} 8. h4 {[%clk 0:02:34]}  d5 {[%clk 0:02:48]} 9. e5 {[%clk 0:02:20]}  Ne4 {[%clk 0:02:47]} 10. Nxe4 {[%clk 0:01:46]}  Bxe4 {[%clk 0:02:46]} 11. Rh3 {[%clk 0:01:46]}  c5 {[%clk 0:02:45]} 12. Ng5 {[%clk 0:01:34]}  Nc6 {[%clk 0:02:36]} 13. c3 {[%clk 0:01:26]}  cxd4 {[%clk 0:02:33]} 14. f3 {[%clk 0:01:21]}  h6 {[%clk 0:02:17]} 15. Nxf7 {[%clk 0:01:20]}  Kxf7 {[%clk 0:02:15]} 16. fxe4 {[%clk 0:01:21]}  dxe4 {[%clk 0:02:03]} 17. Qxe4 {[%clk 0:01:14]}  Be7 {[%clk 0:01:54]} 18. Bd3 {[%clk 0:01:07]}  Ke8 {[%clk 0:01:48]} 19. Qg6+ {[%clk 0:01:00]}  Kd7 {[%clk 0:01:48]} 20. Kf1 {[%clk 0:00:35]}  Nxe5 {[%clk 0:01:42]} 21. Qe4 {[%clk 0:00:35]}  Rf8+ {[%clk 0:01:40]} 22. Kg2 {[%clk 0:00:35]}  Nc6 {[%clk 0:01:38]} 23. Bc4 {[%clk 0:00:32]}  e5 {[%clk 0:01:34]} 24. cxd4 {[%clk 0:00:29]}  Bd6 {[%clk 0:01:26]} 25. dxe5 {[%clk 0:00:24]}  Bxe5 {[%clk 0:01:18]} 26. Bb5 {[%clk 0:00:19]}  Qf6 {[%clk 0:01:15]} 27. Be3 {[%clk 0:00:15]}  Rae8 {[%clk 0:01:11]} 28. Rd1+ {[%clk 0:00:09]}  Kc7 {[%clk 0:01:11]} 29. Rf3 {[%clk 0:00:04]}  Qxf3+ {[%clk 0:01:10]} 30. Qxf3 {[%clk 0:00:04]}  Rxf3 {[%clk 0:01:09]} 31. Kxf3 {[%clk 0:00:04]}  Bxb2 {[%clk 0:01:08]} 32. Bxc6 {[%clk 0:00:03]}  bxc6 {[%clk 0:01:07]} 33. Bxa7 {[%clk 0:00:04]}  Ra8 {[%clk 0:01:05]} 34. Be3 {[%clk 0:00:04]}  Rxa2 {[%clk 0:01:04]} 35. Bf4+ {[%clk 0:00:04]}  Kb6 {[%clk 0:01:03]} 36. Rd7 {[%clk 0:00:04]}  Bf6 {[%clk 0:01:01]} 37. g5 {[%clk 0:00:04]}  hxg5 {[%clk 0:01:01]} 38. hxg5 {[%clk 0:00:04]}  Ra3+ {[%clk 0:01:00]} 39. Kg4 {[%clk 0:00:04]}  Bc3 {[%clk 0:00:57]} 40. Be3+ {[%clk 0:00:04]}  Kb5 {[%clk 0:00:57]} 41. Rb7+ {[%clk 0:00:03]}  Kc4 {[%clk 0:00:57]} 42. Rc7 {[%clk 0:00:04]}  Ra6 {[%clk 0:00:56]} 43. g6 {[%clk 0:00:03]}  Bd4 {[%clk 0:00:55]} 44. Bxd4 {[%clk 0:00:03]}  Kxd4 {[%clk 0:00:55]} 45. Rxg7 {[%clk 0:00:04]}  c5 {[%clk 0:00:55]} 46. Kg5 {[%clk 0:00:04]}  c4 {[%clk 0:00:55]} 47. Rd7+ {[%clk 0:00:04]}  Kc3 {[%clk 0:00:54]} 48. g7 {[%clk 0:00:05]}  Ra8 {[%clk 0:00:53]} 49. Kg6 {[%clk 0:00:02]}  Kb2 {[%clk 0:00:53]} 50. Kf7 {[%clk 0:00:01]}  c3 {[%clk 0:00:51]} 51. Rb7+ {[%clk 0:00:02]}  Kc1 {[%clk 0:00:50]} 52. Rc7 {[%clk 0:00:03]}  c2 {[%clk 0:00:50]} 53. g8=Q {[%clk 0:00:04]}  Rxg8 {[%clk 0:00:49]} 54. Kxg8 {[%clk 0:00:05]}  Kb2 {[%clk 0:00:49]} 55. Rxc2+ {[%clk 0:00:05]}  Kxc2 {[%clk 0:00:49]} 1/2-1/2


[Site "https://www.chess.com"]

[Event "Titled Tuesday Blitz October 18 Late 2022"]
[White "Eisa Mohmood, Alkhoori"]
[Black "Przybylski, Wojciech"]
[WhiteFideId "9316116"]
[BlackFideId "1117599"]
[WhiteElo "1245"]
[BlackElo "2221"]
[Result "0-1"]
[Round "09"]
[TimeControl "180+1"]
[Date "2022.10.19"]
[WhiteClock "0:00:03"]
[BlackClock "0:00:55"]

1. e4 {[%clk 0:02:59]}  c5 {[%clk 0:02:57]} 2. Nf3 {[%clk 0:02:57]}  e6 {[%clk 0:02:56]} 3. d4 {[%clk 0:02:57]}  cxd4 {[%clk 0:02:56]} 4. Nxd4 {[%clk 0:02:58]}  Nc6 {[%clk 0:02:56]} 5. Nc3 {[%clk 0:02:58]}  a6 {[%clk 0:02:54]} 6. a3 {[%clk 0:02:57]}  Bc5 {[%clk 0:02:52]} 7. Nxc6 {[%clk 0:02:50]}  bxc6 {[%clk 0:02:51]} 8. Qg4 {[%clk 0:02:51]}  Qf6 {[%clk 0:02:37]} 9. Qg3 {[%clk 0:02:27]}  Ne7 {[%clk 0:02:25]} 10. Bd3 {[%clk 0:02:08]}  Ng6 {[%clk 0:02:22]} 11. Bg5 {[%clk 0:01:59]}  Bxf2+ {[%clk 0:02:20]} 12. Qxf2 {[%clk 0:01:56]}  Qxg5 {[%clk 0:02:20]} 13. O-O {[%clk 0:01:57]}  O-O {[%clk 0:02:18]} 14. Rae1 {[%clk 0:01:37]}  Ne5 {[%clk 0:02:11]} 15. Kh1 {[%clk 0:01:27]}  d6 {[%clk 0:02:09]} 16. Qd4 {[%clk 0:01:24]}  Qe7 {[%clk 0:02:08]} 17. Re3 {[%clk 0:01:23]}  c5 {[%clk 0:02:06]} 18. Qa4 {[%clk 0:01:22]}  Bd7 {[%clk 0:02:04]} 19. Qa5 {[%clk 0:01:21]}  Nc6 {[%clk 0:01:59]} 20. Qa4 {[%clk 0:01:16]}  Nd4 {[%clk 0:01:53]} 21. Qa5 {[%clk 0:01:15]}  Nc6 {[%clk 0:01:53]} 22. Qa4 {[%clk 0:01:14]}  Rfb8 {[%clk 0:01:50]} 23. Rfe1 {[%clk 0:00:48]}  Ne5 {[%clk 0:01:49]} 24. Qa5 {[%clk 0:00:46]}  Nc6 {[%clk 0:01:45]} 25. Qa4 {[%clk 0:00:45]}  Ne5 {[%clk 0:01:45]} 26. Qa5 {[%clk 0:00:45]}  h5 {[%clk 0:01:35]} 27. Nd1 {[%clk 0:00:23]}  Ng4 {[%clk 0:01:28]} 28. Rf3 {[%clk 0:00:22]}  Qh4 {[%clk 0:01:19]} 29. Rh3 {[%clk 0:00:22]}  Qg5 {[%clk 0:01:16]} 30. Qc7 {[%clk 0:00:14]}  Qd2 {[%clk 0:01:06]} 31. Rf1 {[%clk 0:00:14]}  Be8 {[%clk 0:00:58]} 32. Qxd6 {[%clk 0:00:14]}  c4 {[%clk 0:00:58]} 33. Qf4 {[%clk 0:00:02]}  Qxf4 {[%clk 0:00:55]} 34. Rxf4 {[%clk 0:00:03]}  cxd3 {[%clk 0:00:55]} 0-1


[Site "https://www.chess.com"]

[Event "Titled Tuesday Blitz October 18 Late 2022"]
[White "Forgacs, Attila Jr."]
[Black "Saravana, Krishnan P."]
[WhiteFideId "773654"]
[BlackFideId "5018382"]
[WhiteElo "2168"]
[BlackElo "2155"]
[Result "1-0"]
[Round "09"]
[TimeControl "180+1"]
[Date "2022.10.19"]
[WhiteClock "0:00:18"]
[BlackClock "0:00:02"]

1. e4 {[%clk 0:03:00]}  c6 {[%clk 0:02:58]} 2. d4 {[%clk 0:03:00]}  d5 {[%clk 0:02:58]} 3. e5 {[%clk 0:03:01]}  c5 {[%clk 0:02:57]} 4. dxc5 {[%clk 0:03:02]}  Nc6 {[%clk 0:02:57]} 5. a3 {[%clk 0:03:03]}  e6 {[%clk 0:02:55]} 6. b4 {[%clk 0:03:03]}  Nxe5 {[%clk 0:02:55]} 7. Bb2 {[%clk 0:03:03]}  Nc6 {[%clk 0:02:52]} 8. Nf3 {[%clk 0:03:04]}  Nf6 {[%clk 0:02:52]} 9. c4 {[%clk 0:03:04]}  Be7 {[%clk 0:02:48]} 10. Nc3 {[%clk 0:03:03]}  O-O {[%clk 0:02:47]} 11. cxd5 {[%clk 0:03:03]}  exd5 {[%clk 0:02:46]} 12. Bd3 {[%clk 0:03:02]}  Bg4 {[%clk 0:02:44]} 13. h3 {[%clk 0:03:01]}  Bh5 {[%clk 0:02:44]} 14. g4 {[%clk 0:02:47]}  Bg6 {[%clk 0:02:43]} 15. O-O {[%clk 0:02:46]}  Ne4 {[%clk 0:02:38]} 16. Re1 {[%clk 0:02:29]}  f5 {[%clk 0:02:29]} 17. gxf5 {[%clk 0:02:08]}  Bxf5 {[%clk 0:02:28]} 18. Nxe4 {[%clk 0:02:06]}  dxe4 {[%clk 0:02:16]} 19. Bxe4 {[%clk 0:02:06]}  Qxd1 {[%clk 0:02:12]} 20. Raxd1 {[%clk 0:02:05]}  Bxe4 {[%clk 0:02:12]} 21. Rxe4 {[%clk 0:02:01]}  Rxf3 {[%clk 0:02:11]} 22. Rd7 {[%clk 0:01:59]}  Rf7 {[%clk 0:01:58]} 23. Rxb7 {[%clk 0:01:56]}  Raf8 {[%clk 0:01:56]} 24. Rc7 {[%clk 0:01:53]}  Bf6 {[%clk 0:01:42]} 25. Rxf7 {[%clk 0:01:40]}  Kxf7 {[%clk 0:01:39]} 26. Bxf6 {[%clk 0:01:35]}  gxf6 {[%clk 0:01:39]} 27. b5 {[%clk 0:01:36]}  Ne5 {[%clk 0:01:39]} 28. Ra4 {[%clk 0:01:32]}  Ra8 {[%clk 0:01:28]} 29. b6 {[%clk 0:01:27]}  Nc6 {[%clk 0:01:27]} 30. b7 {[%clk 0:01:20]}  Rg8+ {[%clk 0:01:02]} 31. Kf1 {[%clk 0:01:19]}  Ke7 {[%clk 0:01:01]} 32. Rh4 {[%clk 0:01:04]}  Rh8 {[%clk 0:01:00]} 33. a4 {[%clk 0:01:02]}  Kd7 {[%clk 0:00:55]} 34. a5 {[%clk 0:00:48]}  Nxa5 {[%clk 0:00:52]} 35. Rxh7+ {[%clk 0:00:45]}  Rxh7 {[%clk 0:00:17]} 36. b8=Q {[%clk 0:00:45]}  Kc6 {[%clk 0:00:16]} 37. Qd6+ {[%clk 0:00:43]}  Kb7 {[%clk 0:00:15]} 38. Qxf6 {[%clk 0:00:37]}  Nc6 {[%clk 0:00:14]} 39. Qb2+ {[%clk 0:00:33]}  Kc7 {[%clk 0:00:14]} 40. Qb3 {[%clk 0:00:27]}  Rg7 {[%clk 0:00:10]} 41. h4 {[%clk 0:00:25]}  Rh7 {[%clk 0:00:10]} 42. Qg3+ {[%clk 0:00:24]}  Kb7 {[%clk 0:00:10]} 43. Qg4 {[%clk 0:00:23]}  a5 {[%clk 0:00:08]} 44. h5 {[%clk 0:00:23]}  a4 {[%clk 0:00:07]} 45. Qg6 {[%clk 0:00:23]}  Rd7 {[%clk 0:00:05]} 46. h6 {[%clk 0:00:23]}  a3 {[%clk 0:00:05]} 47. Qb1+ {[%clk 0:00:21]}  Kc7 {[%clk 0:00:04]} 48. h7 {[%clk 0:00:21]}  Rd8 {[%clk 0:00:02]} 49. Qb6+ {[%clk 0:00:21]}  Kd7 {[%clk 0:00:02]} 50. Qb7+ {[%clk 0:00:18]} 1-0


[Site "https://www.chess.com"]

[Event "Titled Tuesday Blitz October 18 Late 2022"]
[White "Gabrielian, Artur"]
[Black "Zou, Chen"]
[WhiteFideId "4131002"]
[BlackFideId "8610959"]
[WhiteElo "2432"]
[BlackElo "2325"]
[Result "0-1"]
[Round "09"]
[TimeControl "180+1"]
[Date "2022.10.18"]
[WhiteClock "0:00:09"]
[BlackClock "0:00:09"]

1. e4 {[%clk 0:03:00]}  c5 {[%clk 0:02:58]} 2. Nf3 {[%clk 0:03:00]}  d6 {[%clk 0:02:59]} 3. d4 {[%clk 0:03:00]}  cxd4 {[%clk 0:03:00]} 4. Nxd4 {[%clk 0:03:01]}  Nf6 {[%clk 0:03:00]} 5. Nc3 {[%clk 0:03:01]}  a6 {[%clk 0:03:01]} 6. Bd3 {[%clk 0:03:01]}  e5 {[%clk 0:02:56]} 7. Nde2 {[%clk 0:03:01]}  Be7 {[%clk 0:02:54]} 8. O-O {[%clk 0:03:01]}  O-O {[%clk 0:02:54]} 9. Ng3 {[%clk 0:03:01]}  b5 {[%clk 0:02:52]} 10. h3 {[%clk 0:02:35]}  b4 {[%clk 0:02:43]} 11. Nd5 {[%clk 0:02:33]}  Nxd5 {[%clk 0:02:40]} 12. exd5 {[%clk 0:02:34]}  g6 {[%clk 0:02:39]} 13. Bh6 {[%clk 0:02:30]}  Nd7 {[%clk 0:02:23]} 14. Bxf8 {[%clk 0:02:26]}  Bxf8 {[%clk 0:02:21]} 15. a3 {[%clk 0:02:24]}  bxa3 {[%clk 0:02:15]} 16. Rxa3 {[%clk 0:02:23]}  f5 {[%clk 0:02:01]} 17. Nxf5 {[%clk 0:02:06]}  gxf5 {[%clk 0:02:02]} 18. Bxf5 {[%clk 0:02:07]}  Nf6 {[%clk 0:01:56]} 19. Qf3 {[%clk 0:02:04]}  Bg7 {[%clk 0:01:50]} 20. Rfa1 {[%clk 0:02:01]}  Bb7 {[%clk 0:01:40]} 21. Be6+ {[%clk 0:02:01]}  Kh8 {[%clk 0:01:40]} 22. c4 {[%clk 0:02:01]}  e4 {[%clk 0:01:26]} 23. Qf5 {[%clk 0:02:01]}  Qc7 {[%clk 0:01:24]} 24. Rg3 {[%clk 0:01:57]}  Rf8 {[%clk 0:01:16]} 25. Qg5 {[%clk 0:01:53]}  Ne8 {[%clk 0:00:54]} 26. Re1 {[%clk 0:01:49]}  Qxc4 {[%clk 0:00:48]} 27. Qe7 {[%clk 0:00:54]}  Qd4 {[%clk 0:00:45]} 28. Ree3 {[%clk 0:00:38]}  Qf6 {[%clk 0:00:37]} 29. Qxb7 {[%clk 0:00:27]}  Qxf2+ {[%clk 0:00:37]} 30. Kh1 {[%clk 0:00:27]}  Bd4 {[%clk 0:00:19]} 31. Qb3 {[%clk 0:00:16]}  Nf6 {[%clk 0:00:16]} 32. Kh2 {[%clk 0:00:10]}  Be5 {[%clk 0:00:14]} 33. Kh1 {[%clk 0:00:09]}  Nh5 {[%clk 0:00:09]} 0-1


[Site "https://www.chess.com"]

[Event "Titled Tuesday Blitz October 18 Late 2022"]
[White "Gonzalez Vega, Alejandro"]
[Black "Kirillov, Dmitry"]
[WhiteFideId "3510042"]
[BlackFideId "34180572"]
[WhiteElo "2261"]
[BlackElo "2095"]
[Result "1/2-1/2"]
[Round "09"]
[TimeControl "180+1"]
[Date "2022.10.19"]
[WhiteClock "0:00:06"]
[BlackClock "0:00:07"]

1. e4 {[%clk 0:03:00]}  c6 {[%clk 0:02:57]} 2. d4 {[%clk 0:02:59]}  d5 {[%clk 0:02:58]} 3. exd5 {[%clk 0:03:00]}  cxd5 {[%clk 0:02:57]} 4. Bd3 {[%clk 0:03:00]}  Nc6 {[%clk 0:02:56]} 5. c3 {[%clk 0:03:00]}  Nf6 {[%clk 0:02:56]} 6. Bf4 {[%clk 0:02:59]}  g6 {[%clk 0:02:57]} 7. h3 {[%clk 0:02:58]}  Bg7 {[%clk 0:02:57]} 8. Nf3 {[%clk 0:02:59]}  O-O {[%clk 0:02:58]} 9. O-O {[%clk 0:02:59]}  Bf5 {[%clk 0:02:57]} 10. Re1 {[%clk 0:02:59]}  Rc8 {[%clk 0:02:55]} 11. Ne5 {[%clk 0:02:52]}  Re8 {[%clk 0:02:39]} 12. Bxf5 {[%clk 0:02:23]}  gxf5 {[%clk 0:02:38]} 13. Nd2 {[%clk 0:02:23]}  Qb6 {[%clk 0:02:20]} 14. Qb3 {[%clk 0:02:22]}  Ne4 {[%clk 0:02:07]} 15. Nxe4 {[%clk 0:02:06]}  Qxb3 {[%clk 0:01:48]} 16. axb3 {[%clk 0:02:00]}  Bxe5 {[%clk 0:01:47]} 17. dxe5 {[%clk 0:01:50]}  fxe4 {[%clk 0:01:40]} 18. f3 {[%clk 0:01:44]}  exf3 {[%clk 0:01:40]} 19. gxf3 {[%clk 0:01:43]}  e6 {[%clk 0:01:41]} 20. Kf2 {[%clk 0:01:42]}  Kh8 {[%clk 0:00:58]} 21. Bg5 {[%clk 0:01:40]}  h5 {[%clk 0:00:52]} 22. Bf6+ {[%clk 0:01:40]}  Kh7 {[%clk 0:00:53]} 23. b4 {[%clk 0:01:33]}  a6 {[%clk 0:00:50]} 24. Kg3 {[%clk 0:01:19]}  Rg8+ {[%clk 0:00:37]} 25. Kh4 {[%clk 0:01:19]}  Rg6 {[%clk 0:00:29]} 26. Rg1 {[%clk 0:01:13]}  Rcg8 {[%clk 0:00:28]} 27. Rxg6 {[%clk 0:01:06]}  fxg6 {[%clk 0:00:26]} 28. Kg5 {[%clk 0:01:03]}  d4 {[%clk 0:00:20]} 29. Rd1 {[%clk 0:00:52]}  Rc8 {[%clk 0:00:11]} 30. Rd3 {[%clk 0:00:43]}  Rc7 {[%clk 0:00:11]} 31. h4 {[%clk 0:00:41]}  b5 {[%clk 0:00:09]} 32. Kf4 {[%clk 0:00:39]}  Rd7 {[%clk 0:00:08]} 33. Ke4 {[%clk 0:00:37]}  Kg8 {[%clk 0:00:07]} 34. f4 {[%clk 0:00:33]}  Kf7 {[%clk 0:00:07]} 35. cxd4 {[%clk 0:00:27]}  Nxb4 {[%clk 0:00:07]} 36. Rc3 {[%clk 0:00:26]}  Nd5 {[%clk 0:00:07]} 37. Rc6 {[%clk 0:00:25]}  Nxf6+ {[%clk 0:00:03]} 38. exf6 {[%clk 0:00:25]}  Kxf6 {[%clk 0:00:03]} 39. Rxa6 {[%clk 0:00:24]}  Rd5 {[%clk 0:00:03]} 40. Rb6 {[%clk 0:00:21]}  Ke7 {[%clk 0:00:02]} 41. b4 {[%clk 0:00:20]}  Rf5 {[%clk 0:00:03]} 42. Rc6 {[%clk 0:00:17]}  Rd5 {[%clk 0:00:03]} 43. Rc5 {[%clk 0:00:15]}  Kd6 {[%clk 0:00:03]} 44. Rc8 {[%clk 0:00:12]}  Ke7 {[%clk 0:00:04]} 45. Rc7+ {[%clk 0:00:11]}  Kd6 {[%clk 0:00:04]} 46. Rg7 {[%clk 0:00:09]}  Kc6 {[%clk 0:00:04]} 47. Rxg6 {[%clk 0:00:09]}  Rd6 {[%clk 0:00:05]} 48. Rg5 {[%clk 0:00:05]}  Kd7 {[%clk 0:00:05]} 49. Rxh5 {[%clk 0:00:05]}  Rc6 {[%clk 0:00:05]} 50. Re5 {[%clk 0:00:05]}  Rc4 {[%clk 0:00:05]} 51. f5 {[%clk 0:00:05]}  exf5+ {[%clk 0:00:04]} 52. Rxf5 {[%clk 0:00:06]}  Rxb4 {[%clk 0:00:05]} 53. Kd5 {[%clk 0:00:06]}  Rb1 {[%clk 0:00:04]} 54. Kc5 {[%clk 0:00:06]}  b4 {[%clk 0:00:04]} 55. Rf2 {[%clk 0:00:05]}  b3 {[%clk 0:00:04]} 56. d5 {[%clk 0:00:05]}  Rh1 {[%clk 0:00:04]} 57. Kb4 {[%clk 0:00:05]}  Rxh4+ {[%clk 0:00:04]} 58. Kxb3 {[%clk 0:00:05]}  Rd4 {[%clk 0:00:05]} 59. Rf5 {[%clk 0:00:04]}  Kd6 {[%clk 0:00:05]} 60. Kc3 {[%clk 0:00:05]}  Rxd5 {[%clk 0:00:06]} 61. Rxd5+ {[%clk 0:00:06]}  Kxd5 {[%clk 0:00:07]} 1/2-1/2


[Site "https://www.chess.com"]

[Event "Titled Tuesday Blitz October 18 Late 2022"]
[White "Goryachkina, Aleksandra"]
[Black "Ibadov, Dashgyn"]
[WhiteFideId "4147103"]
[BlackFideId "24107514"]
[WhiteElo "2484"]
[BlackElo "2208"]
[Result "1-0"]
[Round "09"]
[TimeControl "180+1"]
[Date "2022.10.18"]
[WhiteClock "0:00:20"]
[BlackClock "0:00:10"]

1. e4 {[%clk 0:03:00]}  e5 {[%clk 0:02:59]} 2. Nf3 {[%clk 0:02:59]}  Nc6 {[%clk 0:02:59]} 3. d4 {[%clk 0:02:59]}  exd4 {[%clk 0:02:58]} 4. Nxd4 {[%clk 0:03:00]}  Nf6 {[%clk 0:02:59]} 5. Nxc6 {[%clk 0:03:00]}  bxc6 {[%clk 0:02:58]} 6. Bd3 {[%clk 0:03:00]}  d5 {[%clk 0:02:53]} 7. exd5 {[%clk 0:03:00]}  cxd5 {[%clk 0:02:53]} 8. O-O {[%clk 0:03:00]}  Be7 {[%clk 0:02:52]} 9. c4 {[%clk 0:03:00]}  c6 {[%clk 0:02:49]} 10. cxd5 {[%clk 0:02:46]}  cxd5 {[%clk 0:02:50]} 11. Nc3 {[%clk 0:02:44]}  O-O {[%clk 0:02:49]} 12. Bg5 {[%clk 0:02:44]}  Be6 {[%clk 0:02:34]} 13. Qf3 {[%clk 0:02:08]}  Qb6 {[%clk 0:01:59]} 14. Bxf6 {[%clk 0:01:42]}  Bxf6 {[%clk 0:02:00]} 15. Nxd5 {[%clk 0:01:42]}  Bxd5 {[%clk 0:02:00]} 16. Qxd5 {[%clk 0:01:42]}  Rad8 {[%clk 0:01:41]} 17. Qe4 {[%clk 0:01:39]}  g6 {[%clk 0:01:41]} 18. Rad1 {[%clk 0:01:36]}  Qxb2 {[%clk 0:01:37]} 19. Bc4 {[%clk 0:01:33]}  Kg7 {[%clk 0:01:32]} 20. g3 {[%clk 0:01:24]}  a5 {[%clk 0:01:15]} 21. Bb3 {[%clk 0:01:22]}  Rde8 {[%clk 0:01:05]} 22. Qf3 {[%clk 0:01:15]}  Rd8 {[%clk 0:00:45]} 23. Rfe1 {[%clk 0:00:42]}  h5 {[%clk 0:00:42]} 24. h4 {[%clk 0:00:40]}  Rxd1 {[%clk 0:00:31]} 25. Rxd1 {[%clk 0:00:40]}  Re8 {[%clk 0:00:28]} 26. Rd7 {[%clk 0:00:30]}  Rf8 {[%clk 0:00:16]} 27. Qd5 {[%clk 0:00:30]}  Qa1+ {[%clk 0:00:08]} 28. Kg2 {[%clk 0:00:29]}  Qe5 {[%clk 0:00:08]} 29. Rxf7+ {[%clk 0:00:28]}  Rxf7 {[%clk 0:00:09]} 30. Qxf7+ {[%clk 0:00:28]}  Kh6 {[%clk 0:00:10]} 31. Bc2 {[%clk 0:00:20]} 1-0


[Site "https://www.chess.com"]

[Event "Titled Tuesday Blitz October 18 Late 2022"]
[White "Hemam, Moulaye Brahim"]
[Black "Brown, Andrew"]
[WhiteFideId "19600054"]
[BlackFideId "3206513"]
[WhiteElo "2088"]
[BlackElo "2245"]
[Result "0-1"]
[Round "09"]
[TimeControl "180+1"]
[Date "2022.10.19"]
[WhiteClock "0:00:02"]
[BlackClock "0:00:11"]

1. e4 {[%clk 0:02:59]}  g6 {[%clk 0:03:00]} 2. d4 {[%clk 0:02:54]}  Bg7 {[%clk 0:03:00]} 3. Nc3 {[%clk 0:02:55]}  c6 {[%clk 0:03:00]} 4. Be3 {[%clk 0:02:54]}  d5 {[%clk 0:03:00]} 5. exd5 {[%clk 0:02:51]}  cxd5 {[%clk 0:02:59]} 6. Qd2 {[%clk 0:02:49]}  Nc6 {[%clk 0:02:59]} 7. O-O-O {[%clk 0:02:48]}  Bf5 {[%clk 0:02:54]} 8. a3 {[%clk 0:02:31]}  Rc8 {[%clk 0:02:52]} 9. Bd3 {[%clk 0:02:30]}  Bxd3 {[%clk 0:02:42]} 10. Qxd3 {[%clk 0:02:30]}  Nf6 {[%clk 0:02:41]} 11. Nf3 {[%clk 0:02:25]}  O-O {[%clk 0:02:29]} 12. Ne5 {[%clk 0:02:21]}  Qa5 {[%clk 0:02:24]} 13. Qb5 {[%clk 0:01:58]}  Qxb5 {[%clk 0:02:17]} 14. Nxb5 {[%clk 0:01:58]}  a6 {[%clk 0:02:17]} 15. Nxc6 {[%clk 0:01:51]}  Rxc6 {[%clk 0:02:16]} 16. Nc3 {[%clk 0:01:51]}  b5 {[%clk 0:02:12]} 17. f3 {[%clk 0:01:47]}  Rfc8 {[%clk 0:02:10]} 18. Kb1 {[%clk 0:01:45]}  e6 {[%clk 0:02:09]} 19. Rd2 {[%clk 0:01:40]}  Ne8 {[%clk 0:02:09]} 20. Bf4 {[%clk 0:01:27]}  Nd6 {[%clk 0:02:08]} 21. Bxd6 {[%clk 0:01:27]}  Rxd6 {[%clk 0:02:08]} 22. Ne2 {[%clk 0:01:22]}  a5 {[%clk 0:02:04]} 23. c3 {[%clk 0:01:21]}  h5 {[%clk 0:01:50]} 24. Rc2 {[%clk 0:01:15]}  Bh6 {[%clk 0:01:42]} 25. Nc1 {[%clk 0:01:10]}  b4 {[%clk 0:01:22]} 26. axb4 {[%clk 0:01:08]}  axb4 {[%clk 0:01:21]} 27. cxb4 {[%clk 0:01:04]}  Rxc2 {[%clk 0:01:21]} 28. Kxc2 {[%clk 0:01:05]}  Rc6+ {[%clk 0:01:21]} 29. Kb1 {[%clk 0:01:04]}  Rc4 {[%clk 0:01:21]} 30. Rd1 {[%clk 0:00:54]}  Rxb4 {[%clk 0:01:00]} 31. Na2 {[%clk 0:00:41]}  Rc4 {[%clk 0:00:54]} 32. b3 {[%clk 0:00:39]}  Rc7 {[%clk 0:00:54]} 33. Rd3 {[%clk 0:00:32]}  h4 {[%clk 0:00:50]} 34. Rc3 {[%clk 0:00:24]}  Rb7 {[%clk 0:00:49]} 35. Kc2 {[%clk 0:00:22]}  Bf4 {[%clk 0:00:49]} 36. h3 {[%clk 0:00:21]}  Kg7 {[%clk 0:00:48]} 37. Kd3 {[%clk 0:00:11]}  Kf6 {[%clk 0:00:47]} 38. Kc2 {[%clk 0:00:10]}  Kf5 {[%clk 0:00:46]} 39. b4 {[%clk 0:00:09]}  Bd6 {[%clk 0:00:45]} 40. Kb3 {[%clk 0:00:09]}  Kf4 {[%clk 0:00:46]} 41. Rd3 {[%clk 0:00:08]}  Kg3 {[%clk 0:00:45]} 42. Rd2 {[%clk 0:00:08]}  Bf4 {[%clk 0:00:45]} 43. Rc2 {[%clk 0:00:07]}  Be3 {[%clk 0:00:45]} 44. Nc3 {[%clk 0:00:03]}  Bf2 {[%clk 0:00:36]} 45. Rd2 {[%clk 0:00:02]}  g5 {[%clk 0:00:23]} 46. Nd1 {[%clk 0:00:02]}  Bg1 {[%clk 0:00:21]} 47. Rc2 {[%clk 0:00:01]}  Bxd4 {[%clk 0:00:21]} 48. Nb2 {[%clk 0:00:01]}  Bxb2 {[%clk 0:00:17]} 49. Rxb2 {[%clk 0:00:01]}  e5 {[%clk 0:00:16]} 50. Ka4 {[%clk 0:00:01]}  d4 {[%clk 0:00:16]} 51. b5 {[%clk 0:00:01]}  f5 {[%clk 0:00:16]} 52. b6 {[%clk 0:00:01]}  e4 {[%clk 0:00:16]} 53. fxe4 {[%clk 0:00:02]}  fxe4 {[%clk 0:00:16]} 54. Kb5 {[%clk 0:00:02]}  d3 {[%clk 0:00:16]} 55. Kc4 {[%clk 0:00:01]}  Kf4 {[%clk 0:00:11]} 56. Kd4 {[%clk 0:00:01]}  Rd7+ {[%clk 0:00:12]} 57. Kc3 {[%clk 0:00:01]}  Ke3 {[%clk 0:00:10]} 58. b7 {[%clk 0:00:02]}  Rc7+ {[%clk 0:00:11]} 0-1


[Site "https://www.chess.com"]